bitfinex/quotes_ETHUSD_20241225
["timestamp","ask_amount","ask_price","bid_price","bid_amount"]
[1735137650183,0.7904,3500.6,3499.7,3.57923987]
[1735137650389,0.03347073,3500.5,3499.8,2.85728]
[1735137650908,0.02932066,3500.4,3499.8,2.85728]
[1735137651324,0.82387073,3500.6,3499.8,2.85728]
[1735137651489,0.02932066,3500.5,3499.8,2.85728]
[1735137651685,0.02932066,3500.5,3499.7,0.72192987]
[1735137651885,0.84307073,3500.4,3499.2,0.8151]
[1735137652092,0.84307073,3500.4,3498.7,3.0]
[1735137652093,2.85698,3500.2,3499.1,3.42050257]
[1735137652294,0.8096,3500.0,3499.1,3.42050257]
[1735137652491,0.03347073,3499.9,3499.1,3.42050257]
[1735137652691,0.02984929,3499.8,3499.1,3.42050257]
[1735137653331,0.8096,3499.7,3499.1,3.42050257]
[1735137653714,0.02984929,3499.6,3499.1,3.42050257]
[1735137654428,0.02984929,3499.6,3499.2,2.85778]
[1735137654796,0.8096,3499.7,3499.2,2.85778]
[1735137655193,0.02984929,3499.6,3499.2,2.85778]
[1735137655626,0.8096,3499.7,3499.2,2.85778]
[1735137656130,0.8096,3499.5,3498.2,3.67365]
[1735137656301,0.8096,3499.5,3498.9,2.85801]
[1735137656813,0.02950866,3499.4,3498.9,2.85801]
[1735137657005,0.02950866,3499.4,3498.2,4.65754042]
[1735137657006,0.02950866,3499.4,3499.0,2.85795]
[1735137657208,0.02950866,3499.4,3499.1,0.367305]
[1735137657606,0.02950866,3499.4,3499.0,2.85795]
[1735137658329,0.02950866,3499.4,3498.3,3.0]
[1735137658531,0.8096,3499.5,3498.9,2.85803]
[1735137658709,0.02950866,3499.4,3498.9,2.85803]
[1735137659123,0.02950866,3499.4,3498.5,0.55]
[1735137659326,0.8096,3499.8,3499.3,2.85771]
[1735137659529,0.02950866,3499.7,3499.4,2.85763]
[1735137659714,0.8096,3499.8,3499.4,2.85763]
[1735137659903,0.02943229,3499.7,3499.4,2.85763]
[1735137660102,0.8096,3499.8,3499.4,2.85763]
[1735137660301,0.02943229,3499.7,3499.4,2.85763]
[1735137660611,0.8096,3499.8,3499.4,3.143393]
[1735137660823,0.8096,3499.8,3499.2,2.85778]
[1735137661135,0.02943229,3499.7,3499.2,2.85778]
[1735137661435,0.8096,3499.8,3499.2,2.85778]
[1735137661747,0.02943229,3499.7,3499.2,2.85778]
[1735137661911,0.8096,3499.8,3499.3,2.85771]
[1735137662243,0.02943229,3499.7,3499.5,2.85747]
[1735137662600,0.8096,3500.4,3499.5,2.85747]
[1735137663041,0.0296614,3500.3,3499.5,2.85747]
[1735137663243,0.0296614,3500.3,3499.4,0.8151]
[1735137663536,0.0296614,3500.3,3499.8,2.85728]
[1735137663715,0.0296614,3500.3,3499.7,2.85737]
[1735137664112,0.8096,3500.2,3498.8,0.8151]
[1735137664343,0.8096,3499.8,3498.3,0.8151]
[1735137664512,0.8096,3499.6,3498.8,2.85806]
[1735137664850,0.8096,3499.6,3498.7,2.8582]
[1735137665027,0.02981411,3499.5,3499.0,2.85789]
[1735137665227,0.8096,3499.6,3499.0,2.85789]
[1735137665743,0.02981411,3499.5,3499.1,2.85786]
[1735137665915,0.02981411,3499.5,3498.6,0.8151]
[1735137666133,0.8096,3499.6,3498.7,3.42956476]
[1735137666339,0.7626,3500.6,3499.6,2.85744]
[1735137666539,0.02981411,3500.5,3499.6,2.85744]
[1735137667049,0.7626,3500.3,3499.0,0.828]
[1735137667254,0.03347073,3500.2,3499.3,2.85766]
[1735137667452,0.06309101,3500.2,3499.3,2.85766]
[1735137667755,0.06309101,3500.2,3499.0,3.6859]
[1735137667756,0.7626,3500.1,3499.0,3.6859]
[1735137668140,0.7626,3499.7,3498.7,3.42956476]
[1735137668466,0.02962028,3499.6,3498.7,3.42956476]
[1735137668660,0.02962028,3499.6,3498.8,3.0]
[1735137668973,0.7626,3499.7,3498.8,3.0]
[1735137669343,0.02962028,3499.6,3498.8,3.0]
[1735137669667,0.7626,3499.7,3498.8,3.0]
[1735137670070,0.02962028,3499.6,3498.8,3.0]
[1735137670372,0.7626,3499.7,3498.9,2.85803]
[1735137670865,0.02962028,3499.6,3498.9,2.85803]
[1735137672658,0.02962028,3499.6,3498.8,3.47051376]
[1735137672960,0.7626,3499.5,3498.5,0.58655037]
[1735137673263,0.7626,3499.5,3498.9,2.85803]
[1735137673465,0.02976125,3499.4,3498.9,2.85803]
[1735137673691,0.02976125,3499.4,3499.1,2.85787]
[1735137674083,0.7626,3499.5,3499.1,2.85787]
[1735137674390,0.02976125,3499.4,3499.1,2.85787]
[1735137674913,0.7626,3499.5,3499.1,2.85787]
[1735137675298,0.02976125,3499.4,3499.1,2.85787]
[1735137675657,0.7626,3499.5,3499.1,2.85787]
[1735137676158,0.7626,3499.5,3498.5,0.58655037]
[1735137676159,0.0292831,3499.4,3498.9,2.85802]
[1735137678182,0.06275383,3499.4,3498.7,2.85818]
[1735137678594,0.7626,3499.5,3498.7,2.85818]
[1735137679286,0.03347073,3499.4,3498.7,2.85818]
[1735137679677,0.8182,3499.3,3498.5,3.58655037]
[1735137679877,0.8182,3499.3,3498.5,2.85835]
[1735137680308,0.0292831,3499.2,3498.3,1.32591562]
[1735137680504,0.85167073,3499.1,3498.3,1.32591562]
[1735137680817,2.85805,3498.9,3498.3,0.14869607]
[1735137680968,0.83637073,3498.8,3498.3,0.14869607]
[1735137681189,0.86566558,3498.8,3498.3,0.14869607]
[1735137681792,0.83219485,3498.8,3498.3,0.14869607]
[1735137683429,0.03347073,3498.7,3498.3,0.14869607]
[1735137683790,0.8029,3498.6,3498.3,0.14869607]
[1735137683994,0.8029,3498.4,3497.7,0.58354222]
[1735137684304,0.06224268,3498.3,3497.7,0.73224036]
[1735137684505,0.03347073,3498.3,3497.7,0.73224036]
[1735137684813,0.8029,3498.2,3497.7,0.14869814]
[1735137685013,0.03347073,3498.1,3497.7,0.14869814]
[1735137685229,0.06224268,3498.1,3497.7,0.14869814]
[1735137687132,0.8029,3498.0,3497.7,0.14869814]
[1735137687479,0.8029,3498.0,3496.9,1.17721955]
[1735137687480,0.86334837,3497.9,3496.9,1.17721955]
[1735137687789,2.85896,3497.8,3496.9,1.17721955]
[1735137687994,1.12831157,3497.7,3496.9,1.17721955]
[1735137688295,0.02697764,3497.6,3496.9,1.17721955]
[1735137688613,0.02697764,3497.6,3496.8,1.17721955]
[1735137689133,0.02697764,3497.6,3496.9,0.02859575]
[1735137689303,0.02697764,3497.6,3497.5,2.85918]
[1735137689507,0.8029,3498.0,3497.0,2.85959]
[1735137689687,0.8029,3498.0,3497.1,0.47957095]
[1735137690130,0.02646594,3497.9,3496.9,0.7589]
[1735137690429,0.8029,3498.0,3497.0,2.85959]
[1735137690830,0.02646594,3497.9,3497.0,2.85959]
[1735137691223,0.02646594,3497.9,3496.7,0.14869194]
[1735137691224,0.8029,3497.6,3496.7,0.14869194]
[1735137691530,0.8029,3497.4,3496.7,0.14869194]
[1735137691733,0.03347073,3497.3,3496.7,0.14869194]
[1735137691925,0.82908362,3497.2,3496.7,0.14869194]
[1735137692235,0.03347073,3497.1,3496.7,0.14869194]
[1735137692530,0.8029,3497.0,3496.7,0.14869194]
[1735137692734,0.42904328,3496.9,3496.7,0.14869194]
[1735137692939,0.42904328,3496.9,3496.0,2.86034]
[1735137693439,0.42904328,3496.9,3496.0,3.00902489]
[1735137693798,0.05946021,3496.9,3496.0,3.00902489]
[1735137694731,0.8029,3496.8,3496.0,3.00902489]
[1735137694957,0.02557755,3496.7,3496.0,3.00902489]
[1735137696337,0.02557755,3496.7,3496.5,2.85999]
[1735137696488,0.7527,3497.1,3496.1,3.02859601]
[1735137696644,0.7527,3497.4,3496.2,1.70292465]
[1735137696849,0.7527,3497.4,3496.0,0.14868489]
[1735137696850,0.7527,3497.1,3496.1,3.0]
[1735137697086,0.78617073,3497.1,3496.1,3.0]
[1735137698172,0.03347073,3497.0,3496.1,3.0]
[1735137698585,0.03347073,3497.0,3496.0,3.00909489]
[1735137698885,0.7527,3496.9,3496.0,3.00909489]
[1735137699073,0.7527,3496.9,3496.0,0.14868489]
[1735137699074,0.7527,3496.7,3496.0,0.14868489]
[1735137699391,0.36458507,3496.6,3495.8,2.86056]
[1735137699574,0.7527,3496.7,3495.8,2.86056]
[1735137700613,0.7527,3496.7,3495.3,0.7527]
[1735137700821,2.71178555,3496.2,3495.4,0.57057263]
[1735137701022,0.7527,3496.0,3495.4,0.57057263]
[1735137701523,0.7527,3496.0,3495.4,3.43142263]
[1735137701822,0.7527,3496.0,3495.4,2.86085]
[1735137701983,0.7527,3496.0,3495.1,2.86109]
[1735137702421,0.7527,3496.0,3495.1,3.23734445]
[1735137702918,0.7527,3496.0,3495.4,2.86089]
[1735137703299,0.7527,3496.0,3495.2,2.86106]
[1735137703882,0.7527,3496.0,3495.3,2.86097]
[1735137704318,0.7527,3496.0,3495.0,0.7527]
[1735137704504,0.7527,3496.0,3495.1,2.86113]
[1735137704710,0.78617073,3496.0,3495.1,2.86113]
[1735137705106,0.7527,3496.0,3495.1,2.86113]
[1735137705831,0.7527,3495.9,3494.9,0.14875448]
[1735137705990,0.7527,3495.6,3494.9,0.14875448]
[1735137706189,0.7527,3495.4,3494.9,0.14875448]
[1735137708252,0.03347073,3495.3,3494.9,0.14875448]
[1735137708548,0.7527,3494.9,3494.0,0.7527]
[1735137708753,0.03347073,3494.8,3494.0,0.7527]
[1735137709056,0.03347073,3494.8,3494.0,1.12906579]
[1735137709257,0.7666,3494.7,3493.9,0.14873788]
[1735137711308,0.80007073,3494.7,3493.9,0.14873788]
[1735137711690,2.71178555,3494.5,3493.9,0.14873788]
[1735137712031,0.7531,3494.2,3493.9,0.14873788]
[1735137713991,2.86203,3494.1,3493.9,0.14873788]
[1735137714191,0.7531,3494.2,3493.9,0.14873788]
[1735137714192,0.03347073,3494.0,3493.9,0.14873788]
[1735137714405,3.46488555,3494.1,3493.9,0.14873788]
[1735137714636,0.03347073,3494.0,3493.9,0.14873788]
[1735137714935,6.96291218,3494.1,3493.9,0.14873788]
[1735137715445,0.7531,3494.0,3492.5,0.8077]
[1735137715605,2.71178555,3493.6,3493.0,0.14869554]
[1735137716034,2.71178555,3493.6,3492.6,0.57480587]
[1735137716236,0.03347073,3493.5,3493.0,0.14872498]
[1735137716407,0.7531,3493.6,3492.5,0.8077]
[1735137716601,0.7531,3493.6,3492.5,1.174805]
[1735137716801,3.30941943,3493.7,3491.3,1.14609]
[1735137716802,3.61588,3493.1,3493.0,0.14873257]
[1735137717046,3.61588,3493.1,3491.5,2.86403]
[1735137717047,2.86288,3493.0,3491.5,2.86409]
[1735137717344,0.03347073,3492.9,3492.3,0.14875512]
[1735137717672,0.7531,3493.1,3491.6,0.8077]
[1735137717824,0.7531,3493.1,3492.3,0.14872075]
[1735137718030,0.7531,3493.1,3492.1,0.8077]
[1735137718268,0.7531,3493.1,3492.3,0.14871713]
[1735137719337,0.03347073,3493.0,3492.3,0.14871713]
[1735137719744,0.7531,3493.1,3492.3,0.14871713]
[1735137719945,1.44896202,3493.1,3492.3,0.14871713]
[1735137720142,0.03347073,3493.0,3492.3,0.14871713]
[1735137720345,1.44896202,3493.1,3492.3,0.14871713]
[1735137720705,0.03347073,3493.0,3492.3,0.14871713]
[1735137720910,1.44896202,3493.1,3492.3,0.14871713]
[1735137721668,0.03347073,3493.0,3492.3,0.14871713]
[1735137721871,0.79891895,3493.0,3492.3,0.14871713]
[1735137722376,0.03347073,3493.0,3492.3,0.14871713]
[1735137722645,0.7531,3493.1,3492.3,0.14871713]
[1735137723440,0.03347073,3493.0,3492.3,0.14871713]
[1735137724120,0.7531,3492.9,3492.3,0.14871713]
[1735137724319,0.7531,3492.6,3492.3,0.14871713]
[1735137724537,0.36496907,3492.5,3492.3,0.14871713]
[1735137724934,3.6163,3492.6,3492.3,0.14871713]
[1735137725327,0.7531,3492.4,3491.1,0.8077]
[1735137725524,3.34289016,3492.5,3491.1,0.8077]
[1735137725525,2.86362,3492.1,3491.1,0.8077]
[1735137725777,2.86362,3492.1,3491.7,0.14859529]
[1735137725778,2.89709073,3492.1,3491.7,0.14859529]
[1735137725978,2.89709073,3492.1,3491.1,0.8077]
[1735137726278,3.30941943,3491.7,3491.2,0.14859699]
[1735137726451,0.82187073,3491.6,3491.2,0.14859699]
[1735137726655,0.82187073,3491.6,3490.3,0.7983]
[1735137726957,0.7884,3491.2,3490.4,0.1485504]
[1735137728037,0.7884,3491.6,3490.5,0.7983]
[1735137728412,0.7884,3491.6,3490.7,2.86475]
[1735137728612,0.7884,3491.6,3490.8,0.366305]
[1735137729450,2.86369,3492.0,3490.9,3.66286]
[1735137729451,0.7884,3492.0,3490.9,3.66286]
[1735137729650,0.7884,3492.0,3490.9,0.7983]
[1735137729964,0.03347073,3491.9,3490.9,0.7983]
[1735137730259,0.7884,3492.0,3490.9,0.7983]
[1735137730441,3.0,3492.7,3490.5,0.7983]
[1735137730442,3.30941943,3491.7,3490.5,0.7983]
[1735137730645,3.65245,3491.6,3490.5,3.7983]
[1735137731965,0.7884,3491.6,3490.5,3.66321]
[1735137732130,0.7884,3491.6,3490.7,2.86472]
[1735137732332,0.7884,3491.6,3490.8,0.366302]
[1735137732854,0.7884,3491.6,3490.8,3.230952]
[1735137734053,0.7884,3491.6,3490.9,2.86458]
[1735137734627,0.7884,3491.6,3491.0,2.86448]
[1735137735140,0.7884,3491.6,3490.8,0.366302]
[1735137735349,0.7884,3491.6,3491.1,2.86442]
[1735137737326,0.7884,3491.6,3490.9,0.3366302]
[1735137737527,0.7884,3491.6,3490.8,0.366302]
[1735137737942,0.7884,3491.6,3490.9,2.86458]
[1735137738654,0.03347073,3491.5,3490.7,2.86473]
[1735137738973,0.03347073,3491.5,3490.4,0.1485504]
[1735137738974,0.7884,3491.4,3490.4,3.0135004]
[1735137739378,0.7884,3491.4,3490.4,0.1485504]
[1735137739541,0.7884,3491.4,3490.5,2.86487]
[1735137739736,0.7884,3491.4,3490.6,0.02864629]
[1735137739954,0.7884,3491.4,3490.7,2.86475]
[1735137740278,0.7884,3491.4,3490.4,0.29962581]
[1735137740578,0.7884,3491.9,3491.0,2.86447]
[1735137740880,0.7884,3491.9,3490.5,3.66321]
[1735137740881,0.7884,3491.6,3490.5,0.7983]
[1735137741175,0.03347073,3491.5,3490.5,2.86491]
[1735137741403,0.7884,3491.5,3490.5,2.86491]
[1735137741585,0.7884,3491.3,3490.5,2.86491]
[1735137742338,0.7884,3491.3,3490.4,0.1485504]
[1735137742945,0.7884,3491.3,3490.4,3.0135304]
[1735137743142,0.7884,3491.3,3490.5,2.86484]
[1735137744388,0.7884,3491.3,3490.6,2.86478]
[1735137744548,0.7884,3491.3,3490.6,3.16611304]
[1735137744951,0.7884,3491.3,3490.7,2.86473]
[1735137745167,0.8082,3491.6,3490.8,0.85184474]
[1735137745371,0.8082,3491.6,3491.1,2.8644]
[1735137745797,0.8082,3491.6,3490.9,2.86459]
[1735137746105,0.8082,3492.2,3491.0,0.655254]
[1735137746468,0.8082,3492.2,3491.1,2.86435]
[1735137746668,0.8082,3492.2,3491.3,2.86425]
[1735137747868,0.8082,3492.2,3491.4,2.86416]
[1735137748294,0.84167073,3492.2,3490.9,2.86459]
[1735137748482,0.84167073,3492.2,3490.8,0.8232]
[1735137748779,0.84167073,3492.2,3491.2,2.86432]
[1735137749209,0.8082,3492.2,3491.4,2.86412]
[1735137749408,0.8082,3492.2,3491.0,0.55]
[1735137749577,0.8082,3492.2,3491.7,2.86392]
[1735137750684,0.8082,3492.2,3491.1,0.8232]
[1735137750884,0.8082,3492.2,3491.3,2.86426]
[1735137751090,0.8082,3492.2,3491.8,2.86383]
[1735137751526,2.7247018,3493.1,3491.7,0.8232]
[1735137751725,0.8082,3493.0,3491.8,2.86385]
[1735137751892,0.8082,3493.0,3491.9,0.368705]
[1735137752229,0.8082,3493.0,3491.9,3.232425]
[1735137752429,0.8082,3493.0,3492.3,2.86343]
[1735137752632,0.8082,3493.0,3492.6,2.86319]
[1735137754033,0.8082,3493.0,3492.4,2.86333]
[1735137755204,0.8082,3493.0,3492.4,3.518343]
[1735137755827,0.8082,3493.0,3492.5,2.8632]
[1735137756530,0.8082,3493.0,3492.6,2.86315]
[1735137756719,0.8082,3493.0,3492.6,2.86317]
[1735137758730,0.7926,3493.2,3492.4,3.518303]
[1735137758920,0.7926,3493.2,3492.7,2.86308]
[1735137759765,0.7926,3493.2,3492.5,0.4341503]
[1735137759898,0.7926,3493.2,3492.8,2.863]
[1735137760920,0.7926,3493.9,3493.0,2.86282]
[1735137761209,0.7926,3493.9,3492.7,3.55]
[1735137761210,0.7926,3493.9,3493.2,0.8191]
[1735137761410,0.7926,3493.9,3493.6,2.86229]
[1735137762239,0.7926,3493.9,3493.1,0.286282]
[1735137762440,0.7926,3493.9,3493.0,2.86279]
[1735137762599,0.7926,3493.9,3492.9,0.8191]
[1735137762939,0.7926,3493.9,3493.2,2.86267]
[1735137763760,0.7926,3493.9,3493.3,2.8626]
[1735137766448,0.7926,3493.9,3493.5,2.86243]
[1735137767795,5.5859918,3495.0,3493.8,2.8622]
[1735137768076,0.7926,3494.9,3494.0,2.862]
[1735137768224,0.82607073,3494.9,3493.8,2.86221]
[1735137768428,0.82607073,3494.9,3493.8,2.86214]
[1735137768669,0.7926,3494.8,3493.8,2.86214]
[1735137768974,0.7926,3494.8,3493.4,0.8191]
[1735137769164,0.7926,3494.8,3494.0,2.86203]
[1735137769328,0.7926,3494.8,3493.4,0.8191]
[1735137769528,0.7926,3494.8,3493.7,2.86229]
[1735137769731,0.7926,3494.8,3493.4,0.8191]
[1735137769732,0.7926,3494.8,3493.9,0.8191]
[1735137769926,0.7926,3495.5,3494.5,2.86163]
[1735137770123,0.7926,3495.4,3494.5,2.86163]
[1735137770332,0.7926,3495.2,3494.5,2.86163]
[1735137770566,0.82607073,3495.1,3494.0,0.55]
[1735137770750,0.82607073,3495.1,3494.3,2.86177]
[1735137771151,2.86123,3495.0,3494.0,2.86199]
[1735137771375,0.7765,3494.9,3494.0,2.86199]
[1735137771749,0.7765,3494.9,3494.1,2.89053682]
[1735137771950,0.7765,3494.9,3494.1,2.86192]
[1735137772448,0.7765,3494.9,3494.2,2.86187]
[1735137773273,0.7765,3494.9,3494.0,0.4293915]
[1735137773274,0.80997073,3494.8,3493.8,2.8622]
[1735137773574,0.7765,3494.5,3493.5,2.86243]
[1735137773810,0.7765,3494.3,3493.3,3.4350228]
[1735137774098,0.7765,3494.1,3493.3,3.4350228]
[1735137774401,0.7765,3494.1,3493.3,2.8626]
[1735137775297,0.7765,3494.1,3493.1,2.86278]
[1735137775600,0.7765,3494.1,3493.5,2.86237]
[1735137775895,0.7765,3494.1,3493.6,2.86234]
[1735137776119,0.7765,3494.1,3493.3,0.8066]
[1735137776315,0.7765,3494.1,3493.9,2.86211]
[1735137776521,0.7765,3494.1,3493.7,2.86227]
[1735137776922,0.7765,3494.4,3493.8,3.148357]
[1735137777231,0.7765,3494.4,3493.8,2.86213]
[1735137780378,0.7765,3494.4,3493.3,0.8066]
[1735137780578,0.7765,3494.4,3494.0,2.86199]
[1735137781909,0.7765,3494.4,3493.4,0.55]
[1735137781910,0.7765,3494.4,3493.8,2.86219]
[1735137782780,0.7765,3494.4,3493.4,0.55]
[1735137782981,0.7765,3494.4,3494.0,2.862]
[1735137784003,0.8139,3495.2,3493.8,0.7569]
[1735137784219,0.8139,3495.2,3494.6,2.86155]
[1735137784506,0.8139,3495.2,3494.8,2.86138]
[1735137785582,0.8139,3495.2,3494.2,0.55]
[1735137785964,0.8139,3495.2,3494.3,0.41688]
[1735137786162,0.8139,3495.2,3494.1,0.7569]
[1735137786401,0.84737073,3495.1,3494.3,2.86178]
[1735137786629,0.8139,3495.1,3494.3,2.86178]
[1735137787493,0.8139,3495.1,3494.4,2.86164]
[1735137787693,0.8139,3495.1,3494.1,2.86196]
[1735137787900,0.8139,3495.1,3494.2,3.39897263]
[1735137788120,0.8139,3495.1,3494.2,3.26082263]
[1735137788329,0.8139,3495.1,3494.2,2.86185]
[1735137788681,0.84737073,3495.1,3494.2,2.86185]
[1735137790426,0.8139,3495.1,3493.9,1.1277663]
[1735137790722,0.8139,3495.1,3494.4,2.86164]
[1735137790927,0.8139,3495.1,3494.5,0.286164]
[1735137791428,0.8139,3495.1,3494.6,2.86148]
[1735137792523,0.8109,3496.0,3494.9,2.86123]
[1735137792927,0.8109,3496.0,3494.6,0.55]
[1735137793112,0.8109,3496.0,3495.2,2.86104]
[1735137793316,0.65356018,3495.9,3495.2,2.86104]
[1735137793533,0.8109,3496.0,3495.3,2.86095]
[1735137793849,0.8109,3496.0,3495.3,2.86092]
[1735137794159,0.8109,3496.0,3495.1,2.86111]
[1735137794679,0.84437073,3496.0,3495.1,2.86111]
[1735137795053,0.84437073,3496.0,3494.9,2.86129]
[1735137795256,0.8109,3495.8,3494.9,2.86129]
[1735137796230,0.84437073,3495.8,3494.9,2.86129]
[1735137797537,0.8109,3495.5,3494.5,3.147714]
[1735137797854,0.84437073,3495.5,3494.5,3.147714]
[1735137798324,0.8109,3495.3,3494.3,2.8618]
[1735137798694,0.8109,3495.2,3494.3,2.8618]
[1735137799928,0.8109,3495.2,3494.1,3.0]
[1735137800231,0.8109,3495.2,3494.4,2.86168]
[1735137800433,0.8109,3495.2,3494.0,7.007639]
[1735137800746,0.8109,3495.2,3494.4,2.86167]
[1735137801140,0.8109,3495.2,3494.5,2.86156]
[1735137801985,0.8109,3495.2,3494.6,2.86155]
[1735137802763,0.8109,3495.2,3494.7,2.86147]
[1735137802967,0.8109,3495.2,3494.7,2.89008205]
[1735137803169,0.8109,3495.2,3494.4,0.8259]
[1735137803494,0.8109,3495.2,3494.8,2.86135]
[1735137804094,0.8109,3495.2,3494.9,2.86127]
[1735137804257,0.7641,3495.8,3494.5,0.368764]
[1735137804458,0.7641,3495.8,3495.2,2.86101]
[1735137804867,0.7641,3495.8,3495.3,2.86097]
[1735137805079,0.7641,3495.8,3495.4,0.02860739]
[1735137805420,1.18791618,3496.0,3495.5,0.8259]
[1735137805594,1.18791618,3496.0,3495.9,2.86049]
[1735137806369,0.7641,3496.9,3495.9,2.86049]
[1735137806370,1.18791618,3496.7,3496.6,2.85992]
[1735137806569,1.18791618,3496.7,3496.6,3.145912]
[1735137807379,1.18791618,3496.7,3496.6,7.521812]
[1735137808006,0.7641,3497.7,3497.3,2.85932]
[1735137809220,0.7641,3498.2,3497.6,2.85909]
[1735137809781,0.7641,3498.2,3497.4,2.85922]
[1735137810116,0.7641,3498.2,3497.1,2.85951]
[1735137810321,0.7641,3498.2,3497.0,2.85957]
[1735137810322,2.85871,3498.1,3497.0,2.85957]
[1735137810614,0.7641,3498.2,3497.0,2.85957]
[1735137811023,3.62274,3498.2,3497.0,2.85957]
[1735137811212,0.03347073,3498.1,3497.0,3.228117]
[1735137811524,3.98836107,3498.2,3497.0,3.228117]
[1735137812325,0.03347073,3498.1,3497.0,3.228117]
[1735137812485,0.03347073,3498.1,3497.1,0.57568923]
[1735137812888,0.03347073,3498.1,3496.8,0.8259]
[1735137813123,0.7641,3498.0,3496.8,4.36929938]
[1735137813324,0.03347073,3497.9,3496.8,4.36929938]
[1735137813622,0.03347073,3497.9,3496.8,0.68365938]
[1735137813925,0.7641,3497.8,3496.6,2.85991]
[1735137814136,0.7641,3497.6,3496.0,0.8259]
[1735137814292,0.7641,3497.3,3496.2,2.86023]
[1735137815729,3.62346,3497.3,3496.2,2.86023]
[1735137815909,3.985806,3497.3,3496.2,3.228843]
[1735137819916,0.03347073,3497.2,3496.2,3.228843]
[1735137820235,3.985806,3497.3,3496.2,3.228843]
[1735137821228,3.98236577,3497.3,3496.2,3.228843]
[1735137822103,2.85945,3497.2,3496.2,0.368613]
[1735137822293,3.29116631,3497.2,3496.1,2.8603]
[1735137822693,0.39824558,3497.2,3496.2,2.86023]
[1735137823234,0.03347073,3497.1,3496.2,2.86023]
[1735137824239,0.7621,3497.0,3496.2,2.86023]
[1735137825247,0.7621,3497.0,3496.3,2.86013]
[1735137825465,0.7621,3497.0,3496.4,0.286013]
[1735137825844,0.7621,3497.0,3496.3,2.86013]
[1735137827253,0.79557073,3496.9,3496.0,0.56684705]
[1735137827411,0.7621,3496.9,3496.0,0.56684705]
[1735137828040,0.7621,3496.9,3496.0,3.56684705]
[1735137828351,0.7621,3496.9,3496.3,2.86009]
[1735137829349,0.7621,3496.9,3496.1,3.50303271]
[1735137829511,0.7621,3496.9,3496.0,0.56684705]
[1735137829913,0.7621,3496.9,3496.0,3.56684705]
[1735137830534,0.7621,3496.9,3496.0,3.0]
[1735137830850,0.7621,3496.9,3496.0,2.86039]
[1735137832447,0.7621,3496.9,3496.0,0.34454965]
[1735137832643,0.7621,3496.9,3496.1,2.86029]
[1735137832839,0.7621,3496.9,3495.9,0.58510652]
[1735137833039,0.7621,3496.9,3495.9,4.38770652]
[1735137833241,0.761,3497.5,3496.5,0.8026]
[1735137833446,0.761,3497.5,3496.9,2.85966]
[1735137833665,0.761,3497.5,3496.9,3.145626]
[1735137835096,0.761,3497.5,3497.0,2.85957]
[1735137835256,0.761,3497.5,3496.9,0.285966]
[1735137836485,0.761,3497.5,3496.9,3.145626]
[1735137837388,0.761,3497.5,3496.9,0.285966]
[1735137839383,0.03347073,3497.4,3496.9,0.285966]
[1735137839589,0.761,3497.5,3496.9,0.285966]
[1735137840169,0.761,3497.5,3496.7,2.85981]
[1735137840506,0.761,3497.5,3496.1,2.7247018]
[1735137840507,0.761,3497.2,3496.1,0.8026]
[1735137840873,2.89301073,3497.1,3496.1,3.0]
[1735137841072,0.761,3497.0,3496.1,2.86032]
[1735137845522,0.761,3496.9,3495.9,3.44559652]
[1735137846701,0.81707073,3496.8,3495.9,3.44559652]
[1735137847123,0.7836,3496.8,3496.0,2.86039]
[1735137847698,0.03347073,3496.7,3496.0,2.86039]
[1735137848333,0.7836,3496.3,3495.3,3.147027]
[1735137848633,0.7836,3496.2,3495.4,2.86087]
[1735137852109,0.7836,3496.2,3495.5,2.88934547]
[1735137852307,0.7836,3496.2,3495.5,0.02860547]
[1735137852527,0.7836,3496.2,3495.7,2.86057]
[1735137854329,0.7836,3496.2,3495.0,0.94068032]
[1735137854533,0.7836,3496.2,3495.1,1.31885322]
[1735137854747,0.7836,3496.2,3495.3,2.86092]
[1735137855660,0.7836,3496.2,3495.4,2.8609]
[1735137860176,0.7836,3496.2,3495.1,4.17992322]
[1735137860382,3.64392,3496.2,3495.2,2.86106]
[1735137860571,3.64392,3496.2,3495.3,0.79767132]
[1735137860881,3.64392,3496.2,3495.3,3.65865132]
[1735137860882,0.7836,3496.2,3495.3,3.65865132]
[1735137874002,0.7836,3496.2,3495.3,0.79767132]
[1735137874003,2.86032,3496.2,3495.3,0.79767132]
[1735137874209,0.7758,3496.1,3495.1,2.86113]
[1735137884254,3.63615,3496.1,3495.1,2.86113]
[1735137884551,0.7848,3496.0,3495.1,2.86113]
[1735137887958,0.7848,3496.0,3495.3,0.7957]
[1735137888178,1.18791618,3496.2,3496.0,2.86033]
[1735137888374,1.18791618,3496.2,3496.1,3.225933]
[1735137888876,1.78187427,3496.3,3496.1,3.225933]
[1735137890981,0.7848,3496.7,3496.1,3.225933]
[1735137891350,0.7848,3496.7,3496.2,2.86023]
[1735137894600,0.7848,3496.7,3496.1,0.365603]
[1735137894749,0.7848,3496.7,3496.2,0.3225983]
[1735137896473,0.7848,3496.7,3496.1,3.225913]
[1735137897598,0.7848,3496.7,3496.1,0.365603]
[1735137897748,0.8047,3496.5,3495.8,1.17721955]
[1735137899763,0.8047,3496.5,3495.8,0.02860289]
[1735137900057,0.8047,3496.5,3495.7,2.8606]
[1735137900267,0.7728,3496.3,3495.5,1.17721955]
[1735137900451,0.7728,3495.9,3495.5,1.17721955]
[1735137901084,0.7728,3495.9,3495.5,4.03802955]
[1735137901275,0.7728,3495.9,3495.5,5.3238917]
[1735137901451,0.7728,3495.9,3495.5,6.22925576]
[1735137901881,0.7728,3495.9,3495.5,3.36844576]
[1735137902072,0.7728,3495.9,3495.5,2.4630817]
[1735137902385,0.7728,3495.9,3495.3,2.86095]
[1735137904880,0.7728,3495.9,3495.4,2.86087]
[1735137905405,0.7728,3495.9,3495.0,3.01025241]
[1735137905406,1.19975755,3496.3,3495.6,0.7867]
[1735137905577,1.19975755,3496.3,3496.2,2.86024]